fUSD/lending_fUSD_20260512
["ID","MTS","AMOUNT","RATE_DAILY","PERIOD"]
[422104830,1778577049000,-861.0,0.00033382,30]
[422104831,1778577049000,-7900.96028016,0.00033405,2]
[422104834,1778577049000,-154.0,0.00033635,30]
[422104833,1778577049000,-174.0,0.00033635,30]
[422104841,1778577049000,-511.0,0.00033664,11]
[422104840,1778577049000,-198.0,0.0003364,30]
[422104842,1778577049000,-200.0,0.00034,120]
[422104844,1778577049000,-633.56,0.000342,7]
[422104846,1778577049000,-1500.0,0.000344,7]
[422104849,1778577049000,-1000.0,0.00034481,2]
[422104843,1778577049000,-266.7,0.00034182,7]
[422104845,1778577049000,-150.0,0.00034267,2]
[422104847,1778577049000,-1000.0,0.00034481,2]
[422104848,1778577049000,-1000.0,0.00034481,2]
[422104851,1778577049000,-174.0,0.00034635,30]
[422104822,1778577049000,-219.362548,0.00032877,7]
[422104824,1778577049000,-151.8,0.00032877,30]
[422104850,1778577049000,-1150.17820742,0.00034481,2]
[422104818,1778577049000,-151.0,0.00032877,7]
[422104823,1778577049000,-152.3,0.00032877,60]
[422104796,1778577049000,-500.0,0.00032876,2]
[422104788,1778577049000,-500.0,0.00032876,2]
[422104787,1778577049000,-500.0,0.00032876,2]
[422104789,1778577049000,-500.0,0.00032876,2]
[422104791,1778577049000,-500.0,0.00032876,2]
[422104792,1778577049000,-500.0,0.00032876,2]
[422104795,1778577049000,-408.82935978,0.00032876,2]
[422104793,1778577049000,-500.0,0.00032876,2]
[422104794,1778577049000,-500.0,0.00032876,2]
[422104799,1778577049000,-180.47882247,0.00032876,2]
[422104811,1778577049000,-2532.9672963,0.00032876,2]
[422104798,1778577049000,-500.0,0.00032876,2]
[422104805,1778577049000,-648.09397773,0.00032876,2]
[422104800,1778577049000,-648.09397773,0.00032876,2]
[422104797,1778577049000,-500.0,0.00032876,2]
[422104804,1778577049000,-648.09397773,0.00032876,2]
[422104809,1778577049000,-2532.9672963,0.00032876,2]
[422104817,1778577049000,-151.0,0.00032877,7]
[422104813,1778577049000,-176.01,0.00032877,120]
[422104816,1778577049000,-151.0,0.00032877,7]
[422104815,1778577049000,-151.0,0.00032877,7]
[422104812,1778577049000,-3108.64168182,0.00032876,2]
[422104814,1778577049000,-151.0,0.00032877,7]
[422104807,1778577049000,-495.23677206,0.00032876,2]
[422104808,1778577049000,-2532.9672963,0.00032876,2]
[422104802,1778577049000,-648.09397773,0.00032876,2]
[422104803,1778577049000,-648.09397773,0.00032876,2]
[422104801,1778577049000,-648.09397773,0.00032876,2]
[422104810,1778577049000,-2532.9672963,0.00032876,2]
[422104806,1778577049000,-648.09397773,0.00032876,2]
[422104890,1778577050000,-313.83799317,0.00035616,2]
[422104897,1778577050000,-181.0,0.0003564,30]
[422104892,1778577050000,-154.0,0.00035635,30]
[422104894,1778577050000,-484.0,0.00035635,30]
[422104889,1778577050000,-500.0,0.00035616,5]
[422104880,1778577050000,-909.025004,0.00035616,7]
[422104893,1778577050000,-199.0,0.00035635,30]
[422104891,1778577050000,-174.0,0.00035635,30]
[422104888,1778577050000,-234.78717121,0.00035616,7]
[422104887,1778577050000,-613.08454086,0.00035616,7]
[422104884,1778577050000,-500.0,0.00035616,7]
[422104895,1778577050000,-875.0,0.00035635,30]
[422104896,1778577050000,-222.0,0.0003564,30]
[422104907,1778577050000,-358.918878,0.00035655,7]
[422104899,1778577050000,-152.0,0.0003565,30]
[422104901,1778577050000,-324087.5636424,0.00035655,2]
[422104900,1778577050000,-151.0,0.00035652,14]
[422104909,1778577050000,-358.918878,0.00035655,7]
[422104882,1778577050000,-1983.18,0.00035616,30]
[422104905,1778577050000,-392.640008,0.00035655,7]
[422104903,1778577050000,-392.640008,0.00035655,7]
[422104902,1778577050000,-298.346545,0.00035655,7]
[422104908,1778577050000,-358.918878,0.00035655,7]
[422104904,1778577050000,-392.640008,0.00035655,7]
[422104906,1778577050000,-392.640008,0.00035655,7]
[422104913,1778577050000,-151.0,0.00035655,7]
[422104912,1778577050000,-151.0,0.00035655,7]
[422104910,1778577050000,-358.918881,0.00035655,7]
[422104898,1778577050000,-198.0,0.0003564,30]
[422104883,1778577050000,-500.0,0.00035616,5]
[422104877,1778577050000,-250.0,0.00035616,120]
[422104879,1778577050000,-909.025004,0.00035616,7]
[422104920,1778577050000,-500.0,0.0003614,30]
[422104852,1778577050000,-154.0,0.00034635,30]
[422104861,1778577050000,-330.0,0.00035005,37]
[422104853,1778577050000,-199.0,0.00034635,30]
[422104859,1778577050000,-205.57223781,0.00034891,5]
[422104855,1778577050000,-875.0,0.00034635,30]
[422104858,1778577050000,-198.0,0.0003464,30]
[422104857,1778577050000,-181.0,0.0003464,30]
[422104854,1778577050000,-484.0,0.00034635,30]
[422104856,1778577050000,-222.0,0.0003464,30]
[422104860,1778577050000,-202.30578908,0.00035,120]
[422104863,1778577050000,-500.0,0.0003511,5]
[422104872,1778577050000,-151.0,0.00035292,7]
[422104881,1778577050000,-909.02500448,0.00035616,7]
[422104862,1778577050000,-517.83,0.00035079,30]
[422104864,1778577050000,-1008.75464268,0.00035116,4]
[422104873,1778577050000,-694.90111599,0.00035366,2]
[422104865,1778577050000,-2922.29,0.000352,14]
[422104868,1778577050000,-38542.17374256,0.00035292,2]
[422104867,1778577050000,-511.0,0.00035209,13]
[422104869,1778577050000,-602.743928,0.00035292,2]
[422104870,1778577050000,-151.0,0.00035292,7]
[422104874,1778577050000,-1500.0,0.000354,7]
[422104886,1778577050000,-500.0,0.00035616,7]
[422104876,1778577050000,-500.0,0.000355,5]
[422104875,1778577050000,-837.38,0.00035492,90]
[422104885,1778577050000,-500.0,0.00035616,7]
[422104878,1778577050000,-909.025004,0.00035616,7]
[422104871,1778577050000,-151.0,0.00035292,7]
[422104866,1778577050000,-1500.0,0.000352,7]
[422104915,1778577050000,-150.0,0.00035981,2]
[422104919,1778577050000,-1000.0,0.00036048,2]
[422104950,1778577050000,-1001.192122,0.00036712,5]
[422104949,1778577050000,-250.0,0.00036712,120]
[422104952,1778577050000,-162.95156,0.0003678,82]
[422104951,1778577050000,-511.0,0.00036753,14]
[422104956,1778577050000,-330.0,0.0003696,42]
[422104955,1778577050000,-1000.0,0.0003687,5]
[422104959,1778577050000,-497.961043,0.00037,120]
[422104960,1778577050000,-721.42,0.00037,7]
[422104961,1778577050000,-10710.8325712,0.00037085,2]
[422104958,1778577050000,-371.96971181,0.00037,120]
[422104954,1778577050000,-333.43,0.000368,30]
[422104957,1778577050000,-151.8,0.00036986,60]
[422104963,1778577050000,-1500.0,0.000371,7]
[422104948,1778577050000,-661.29,0.00036699,7]
[422104962,1778577050000,-150.0,0.000371,2]
[422104973,1778577050000,-569.54,0.00037124,2]
[422104968,1778577050000,-639.57,0.00037115,2]
[422104966,1778577050000,-639.93,0.00037112,2]
[422104965,1778577050000,-320.57,0.00037112,2]
[422104975,1778577050000,-571.79,0.00037124,2]
[422104974,1778577050000,-569.54,0.00037124,2]
[422104964,1778577050000,-479.16,0.00037112,2]
[422104967,1778577050000,-639.93,0.00037112,2]
[422104969,1778577050000,-640.08,0.00037115,2]
[422104970,1778577050000,-571.79,0.00037116,2]
[422104972,1778577050000,-392.93,0.00037124,2]
[422104976,1778577050000,-569.86,0.00037124,2]
[422104921,1778577050000,-266.7,0.00036153,30]
[422104971,1778577050000,-393.62,0.00037124,2]
[422104945,1778577050000,-181.0,0.0003664,30]
[422104953,1778577050000,-162.95156,0.0003678,82]
[422104943,1778577050000,-875.0,0.00036635,30]
[422104917,1778577050000,-1000.0,0.00036048,2]
[422104940,1778577050000,-154.0,0.00036635,30]
[422104914,1778577050000,-1002.81656329,0.00035658,5]
[422104918,1778577050000,-1000.0,0.00036048,2]
[422104911,1778577050000,-185.305765,0.00035655,7]
[422104916,1778577050000,-2004.00480293,0.00036035,2]
[422104923,1778577050000,-250.0,0.00036164,120]
[422104933,1778577050000,-1000.0,0.00036438,5]
[422104934,1778577050000,-171.81,0.00036501,120]
[422104925,1778577050000,-2922.29,0.000362,14]
[422104926,1778577050000,-1500.0,0.000362,7]
[422104924,1778577050000,-1868.1632514,0.00036177,2]
[422104932,1778577050000,-633.56,0.000363,7]
[422104929,1778577050000,-210.48,0.0003629,2]
[422104922,1778577050000,-287.87294419,0.00036154,2]
[422104931,1778577050000,-569.54,0.00036294,2]
[422104944,1778577050000,-222.0,0.0003664,30]
[422104928,1778577050000,-479.31,0.0003629,2]
[422104941,1778577050000,-199.0,0.00036635,30]
[422104947,1778577050000,-150.11,0.0003669,30]
[422104936,1778577050000,-566.82,0.00036515,7]
[422104938,1778577050000,-2925.0,0.00036564,2]
[422104937,1778577050000,-350.0,0.00036534,7]
[422104942,1778577050000,-484.0,0.00036635,30]
[422104939,1778577050000,-174.0,0.00036635,30]
[422104935,1778577050000,-661.29,0.00036515,7]
[422104930,1778577050000,-639.93,0.0003629,2]
[422104927,1778577050000,-4114.75,0.0003629,30]
[422104946,1778577050000,-198.0,0.0003664,30]
[422105028,1778577051000,-300.0,0.00037236,2]
[422105027,1778577051000,-300.0,0.00037236,2]
[422105016,1778577051000,-1094.29459015,0.00037236,2]
[422105018,1778577051000,-300.0,0.00037236,2]
[422105019,1778577051000,-300.0,0.00037236,2]
[422105020,1778577051000,-300.0,0.00037236,2]
[422105007,1778577051000,-392.7,0.00037156,2]
[422105010,1778577051000,-569.54,0.00037156,2]
[422105009,1778577051000,-156.28,0.00037156,2]
[422105013,1778577051000,-569.54,0.00037159,2]
[422105006,1778577051000,-250.0,0.00037152,7]
[422105021,1778577051000,-300.0,0.00037236,2]
[422105017,1778577051000,-300.0,0.00037236,2]
[422105023,1778577051000,-300.0,0.00037236,2]
[422105036,1778577051000,-301.67321972,0.00037236,2]
[422105025,1778577051000,-492.49408754,0.00037236,2]
[422105022,1778577051000,-300.0,0.00037236,2]
[422105026,1778577051000,-300.0,0.00037236,2]
[422105029,1778577051000,-604.21547136,0.00037236,2]
[422105031,1778577051000,-527.54022817,0.00037236,2]
[422105030,1778577051000,-300.0,0.00037236,2]
[422105032,1778577051000,-1066.50381929,0.00037236,2]
[422105033,1778577051000,-893.04482543,0.00037236,2]
[422105040,1778577051000,-300.0,0.00037236,2]
[422105034,1778577051000,-725.78568352,0.00037236,2]
[422105039,1778577051000,-300.45062341,0.00037236,2]
[422105035,1778577051000,-300.0,0.00037236,2]
[422105012,1778577051000,-393.63,0.00037159,2]
[422105024,1778577051000,-300.0,0.00037236,2]
[422105003,1778577051000,-1000.0,0.00037149,2]
[422104979,1778577051000,-569.68,0.00037127,2]
[422105005,1778577051000,-801.19908054,0.00037149,2]
[422105037,1778577051000,-300.00000001,0.00037236,2]
[422104978,1778577051000,-571.79,0.00037126,2]
[422104980,1778577051000,-393.62,0.00037127,2]
[422104982,1778577051000,-183.75,0.00037142,2]
[422104988,1778577051000,-1000.0,0.00037149,2]
[422104989,1778577051000,-1000.0,0.00037149,2]
[422104983,1778577051000,-571.79,0.00037142,2]
[422104981,1778577051000,-583.94,0.00037127,2]
[422104977,1778577051000,-569.54,0.00037126,2]
[422104986,1778577051000,-246.00245299,0.00037148,120]
[422104984,1778577051000,-569.54,0.00037142,2]
[422104985,1778577051000,-150.0,0.00037148,120]
[422104987,1778577051000,-163.80098366,0.00037149,2]
[422104991,1778577051000,-1000.0,0.00037149,2]
[422104998,1778577051000,-1000.0,0.00037149,2]
[422104997,1778577051000,-1000.0,0.00037149,2]
[422104996,1778577051000,-1000.0,0.00037149,2]
[422104999,1778577051000,-1000.0,0.00037149,2]
[422105000,1778577051000,-1000.0,0.00037149,2]
[422104990,1778577051000,-1000.0,0.00037149,2]
[422105002,1778577051000,-1000.0,0.00037149,2]
[422104992,1778577051000,-1000.0,0.00037149,2]
[422104993,1778577051000,-1000.0,0.00037149,2]
[422104994,1778577051000,-1000.0,0.00037149,2]
[422105001,1778577051000,-1000.0,0.00037149,2]
[422104995,1778577051000,-1000.0,0.00037149,2]
[422105004,1778577051000,-1000.0,0.00037149,2]
[422105015,1778577051000,-172.66543263,0.00037236,2]
[422105014,1778577051000,-2922.29,0.000372,14]
[422105011,1778577051000,-571.79,0.00037159,2]
[422105041,1778577051000,-300.0,0.00037236,2]
[422105008,1778577051000,-569.54,0.00037156,2]
[422105043,1778577051000,-853.86030012,0.00037236,2]
[422105070,1778577051000,-300.0,0.00037236,2]
[422105077,1778577051000,-300.0,0.00037236,2]
[422105076,1778577051000,-300.0,0.00037236,2]
[422105073,1778577051000,-300.0,0.00037236,2]
[422105075,1778577051000,-492.49408754,0.00037236,2]
[422105080,1778577051000,-527.54022817,0.00037236,2]
[422105082,1778577051000,-893.04482543,0.00037236,2]
[422105083,1778577051000,-300.0,0.00037236,2]
[422105084,1778577051000,-432.74569948,0.00037236,2]
[422105091,1778577051000,-300.0,0.00037236,2]
[422105081,1778577051000,-1066.50381929,0.00037236,2]
[422105087,1778577051000,-300.0,0.00037236,2]
[422105086,1778577051000,-301.67321972,0.00037236,2]
[422105089,1778577051000,-300.0,0.00037236,2]
[422105092,1778577051000,-853.86030012,0.00037236,2]
[422105090,1778577051000,-300.0,0.00037236,2]
[422105085,1778577051000,-725.78568352,0.00037236,2]
[422105088,1778577051000,-300.45062341,0.00037236,2]
[422105095,1778577051000,-300.0,0.00037236,2]
[422105093,1778577051000,-300.0,0.00037236,2]
[422105097,1778577051000,-526.68525168,0.00037236,2]
[422105094,1778577051000,-1911.66155628,0.00037236,2]
[422105098,1778577051000,-300.0,0.00037236,2]
[422105101,1778577051000,-864.10865205,0.00037236,2]
[422105102,1778577051000,-1700.23596656,0.00037236,2]
[422105099,1778577051000,-1146.71946024,0.00037236,2]
[422105100,1778577051000,-309.46605895,0.00037236,2]
[422105103,1778577051000,-310.77293504,0.00037236,2]
[422105038,1778577051000,-300.0,0.00037236,2]
[422105074,1778577051000,-300.0,0.00037236,2]
[422105069,1778577051000,-300.0,0.00037236,2]
[422105096,1778577051000,-343.84381003,0.00037236,2]
[422105071,1778577051000,-399.64911484,0.00037236,2]
[422105078,1778577051000,-604.21547136,0.00037236,2]
[422105042,1778577051000,-300.0,0.00037236,2]
[422105053,1778577051000,-1809.24690158,0.00037236,2]
[422105044,1778577051000,-300.0,0.00037236,2]
[422105045,1778577051000,-1911.66155628,0.00037236,2]
[422105049,1778577051000,-300.0,0.00037236,2]
[422105050,1778577051000,-1146.71946024,0.00037236,2]
[422105052,1778577051000,-864.10865205,0.00037236,2]
[422105051,1778577051000,-309.46605895,0.00037236,2]
[422105046,1778577051000,-300.0,0.00037236,2]
[422105047,1778577051000,-343.84381003,0.00037236,2]
[422105054,1778577051000,-329.45075992,0.00037236,2]
[422105055,1778577051000,-310.77293504,0.00037236,2]
[422105065,1778577051000,-309.70196001,0.00037236,2]
[422105048,1778577051000,-526.68525168,0.00037236,2]
[422105058,1778577051000,-576.93890108,0.00037236,2]
[422105059,1778577051000,-451.72868137,0.00037236,2]
[422105079,1778577051000,-300.0,0.00037236,2]
[422105067,1778577051000,-1094.29459015,0.00037236,2]
[422105072,1778577051000,-300.0,0.00037236,2]
[422105104,1778577051000,-463.6616139,0.00037236,2]
[422105063,1778577051000,-300.0,0.00037236,2]
[422105062,1778577051000,-300.0,0.00037236,2]
[422105068,1778577051000,-350.43871365,0.00037236,2]
[422105064,1778577051000,-483.88780455,0.00037236,2]
[422105061,1778577051000,-300.0,0.00037236,2]
[422105066,1778577051000,-300.0,0.00037236,2]
[422105056,1778577051000,-463.6616139,0.00037236,2]
[422105057,1778577051000,-300.0,0.00037236,2]
[422105060,1778577051000,-300.0,0.00037236,2]
[422105131,1778577052000,-300.0,0.00037236,2]
[422105135,1778577052000,-853.86030012,0.00037236,2]
[422105134,1778577052000,-300.0,0.00037236,2]
[422105133,1778577052000,-300.0,0.00037236,2]
[422105136,1778577052000,-300.0,0.00037236,2]
[422105137,1778577052000,-1911.66155628,0.00037236,2]
[422105138,1778577052000,-343.84381003,0.00037236,2]
[422105143,1778577052000,-864.10865205,0.00037236,2]
[422105132,1778577052000,-300.45062341,0.00037236,2]
[422105140,1778577052000,-526.68525168,0.00037236,2]
[422105146,1778577052000,-300.0,0.00037236,2]
[422105139,1778577052000,-300.0,0.00037236,2]
[422105142,1778577052000,-309.46605895,0.00037236,2]
[422105147,1778577052000,-576.93890108,0.00037236,2]
[422105145,1778577052000,-463.6616139,0.00037236,2]
[422105144,1778577052000,-310.77293504,0.00037236,2]
[422105149,1778577052000,-300.0,0.00037236,2]
[422105148,1778577052000,-451.72868137,0.00037236,2]
[422105150,1778577052000,-300.0,0.00037236,2]
[422105129,1778577052000,-725.78568352,0.00037236,2]
[422105153,1778577052000,-309.70196001,0.00037236,2]
[422105141,1778577052000,-1146.71946024,0.00037236,2]
[422105130,1778577052000,-301.67321972,0.00037236,2]
[422105107,1778577052000,-451.72868137,0.00037236,2]
[422105125,1778577052000,-527.54022817,0.00037236,2]
[422105151,1778577052000,-300.0,0.00037236,2]
[422105105,1778577052000,-300.0,0.00037236,2]
[422105106,1778577052000,-576.93890108,0.00037236,2]
[422105108,1778577052000,-300.0,0.00037236,2]
[422105110,1778577052000,-300.0,0.00037236,2]
[422105109,1778577052000,-300.0,0.00037236,2]
[422105113,1778577052000,-300.0,0.00037236,2]
[422105111,1778577052000,-483.88780455,0.00037236,2]
[422105112,1778577052000,-309.70196001,0.00037236,2]
[422105116,1778577052000,-300.0,0.00037236,2]
[422105128,1778577052000,-300.0,0.00037236,2]
[422105115,1778577052000,-300.0,0.00037236,2]
[422105118,1778577052000,-300.0,0.00037236,2]
[422105117,1778577052000,-300.0,0.00037236,2]
[422105120,1778577052000,-492.49408754,0.00037236,2]
[422105127,1778577052000,-893.04482543,0.00037236,2]
[422105123,1778577052000,-604.21547136,0.00037236,2]
[422105122,1778577052000,-300.0,0.00037236,2]
[422105119,1778577052000,-300.0,0.00037236,2]
[422105124,1778577052000,-300.0,0.00037236,2]
[422105126,1778577052000,-1066.50381929,0.00037236,2]
[422105121,1778577052000,-300.0,0.00037236,2]
[422105114,1778577052000,-1094.29459015,0.00037236,2]
[422105154,1778577052000,-300.0,0.00037236,2]
[422105161,1778577052000,-300.0,0.00037236,2]
[422105160,1778577052000,-492.49408754,0.00037236,2]
[422105184,1778577052000,-463.6616139,0.00037236,2]
[422105180,1778577052000,-1146.71946024,0.00037236,2]
[422105183,1778577052000,-310.77293504,0.00037236,2]
[422105185,1778577052000,-300.0,0.00037236,2]
[422105194,1778577052000,-300.0,0.00037236,2]
[422105186,1778577052000,-576.93890108,0.00037236,2]
[422105188,1778577052000,-300.0,0.00037236,2]
[422105189,1778577052000,-300.0,0.00037236,2]
[422105187,1778577052000,-451.72868137,0.00037236,2]
[422105193,1778577052000,-309.70196001,0.00037236,2]
[422105182,1778577052000,-864.10865205,0.00037236,2]
[422105191,1778577052000,-300.0,0.00037236,2]
[422105195,1778577052000,-1094.29459015,0.00037236,2]
[422105198,1778577052000,-492.49408754,0.00037236,2]
[422105199,1778577052000,-300.0,0.00037236,2]
[422105203,1778577052000,-527.54022817,0.00037236,2]
[422105196,1778577052000,-300.0,0.00037236,2]
[422105197,1778577052000,-300.0,0.00037236,2]
[422105201,1778577052000,-604.21547136,0.00037236,2]
[422105202,1778577052000,-300.0,0.00037236,2]
[422105200,1778577052000,-501.90611341,0.00037236,2]
[422105152,1778577052000,-483.88780455,0.00037236,2]
[422105192,1778577052000,-483.88780455,0.00037236,2]
[422105181,1778577052000,-309.46605895,0.00037236,2]
[422105190,1778577052000,-300.0,0.00037236,2]
[422105178,1778577052000,-343.84381003,0.00037236,2]
[422105179,1778577052000,-526.68525168,0.00037236,2]
[422105157,1778577052000,-568.92601253,0.00037236,2]
[422105156,1778577052000,-300.0,0.00037236,2]
[422105155,1778577052000,-1094.29459015,0.00037236,2]
[422105158,1778577052000,-386.0005062,0.00037236,2]
[422105159,1778577052000,-300.0,0.00037236,2]
[422105174,1778577052000,-853.86030012,0.00037236,2]
[422105173,1778577052000,-300.0,0.00037236,2]
[422105162,1778577052000,-300.0,0.00037236,2]
[422105165,1778577052000,-527.54022817,0.00037236,2]
[422105163,1778577052000,-604.21547136,0.00037236,2]
[422105171,1778577052000,-300.45062341,0.00037236,2]
[422105166,1778577052000,-1066.50381929,0.00037236,2]
[422105167,1778577052000,-893.04482543,0.00037236,2]
[422105172,1778577052000,-300.0,0.00037236,2]
[422105170,1778577052000,-300.0,0.00037236,2]
[422105168,1778577052000,-725.78568352,0.00037236,2]
[422105169,1778577052000,-301.67321972,0.00037236,2]
[422105176,1778577052000,-599.95681692,0.00037236,2]
[422105177,1778577052000,-300.0,0.00037236,2]
[422105175,1778577052000,-1911.66155628,0.00037236,2]
[422105164,1778577052000,-300.0,0.00037236,2]
[422105240,1778577053000,-893.04482543,0.00037236,2]
[422105235,1778577053000,-300.0,0.00037236,2]
[422105250,1778577053000,-526.68525168,0.00037236,2]
[422105242,1778577053000,-301.67321972,0.00037236,2]
[422105244,1778577053000,-300.45062341,0.00037236,2]
[422105243,1778577053000,-300.0,0.00037236,2]
[422105238,1778577053000,-527.54022817,0.00037236,2]
[422105230,1778577053000,-300.0,0.00037236,2]
[422105237,1778577053000,-300.0,0.00037236,2]
[422105239,1778577053000,-1066.50381929,0.00037236,2]
[422105247,1778577053000,-853.86030012,0.00037236,2]
[422105241,1778577053000,-725.78568352,0.00037236,2]
[422105248,1778577053000,-1911.66155628,0.00037236,2]
[422105261,1778577053000,-300.0,0.00037236,2]
[422105245,1778577053000,-300.0,0.00037236,2]
[422105249,1778577053000,-343.84381003,0.00037236,2]
[422105258,1778577053000,-451.72868137,0.00037236,2]
[422105262,1778577053000,-483.88780455,0.00037236,2]
[422105252,1778577053000,-309.46605895,0.00037236,2]
[422105254,1778577053000,-310.77293504,0.00037236,2]
[422105253,1778577053000,-864.10865205,0.00037236,2]
[422105257,1778577053000,-576.93890108,0.00037236,2]
[422105251,1778577053000,-1146.71946024,0.00037236,2]
[422105259,1778577053000,-300.0,0.00037236,2]
[422105260,1778577053000,-300.0,0.00037236,2]
[422105234,1778577053000,-492.49408754,0.00037236,2]
[422105246,1778577053000,-300.0,0.00037236,2]
[422105233,1778577053000,-300.0,0.00037236,2]
[422105213,1778577053000,-1911.66155628,0.00037236,2]
[422105232,1778577053000,-508.84818994,0.00037236,2]
[422105255,1778577053000,-463.6616139,0.00037236,2]
[422105204,1778577053000,-1066.50381929,0.00037236,2]
[422105206,1778577053000,-725.78568352,0.00037236,2]
[422105205,1778577053000,-893.04482543,0.00037236,2]
[422105208,1778577053000,-300.0,0.00037236,2]
[422105211,1778577053000,-300.0,0.00037236,2]
[422105207,1778577053000,-301.67321972,0.00037236,2]
[422105209,1778577053000,-300.45062341,0.00037236,2]
[422105212,1778577053000,-853.86030012,0.00037236,2]
[422105215,1778577053000,-343.84381003,0.00037236,2]
[422105214,1778577053000,-379.64180417,0.00037236,2]
[422105216,1778577053000,-526.68525168,0.00037236,2]
[422105236,1778577053000,-604.21547136,0.00037236,2]
[422105218,1778577053000,-309.46605895,0.00037236,2]
[422105217,1778577053000,-1146.71946024,0.00037236,2]
[422105219,1778577053000,-864.10865205,0.00037236,2]
[422105227,1778577053000,-300.0,0.00037236,2]
[422105221,1778577053000,-463.6616139,0.00037236,2]
[422105225,1778577053000,-300.0,0.00037236,2]
[422105223,1778577053000,-576.93890108,0.00037236,2]
[422105226,1778577053000,-300.0,0.00037236,2]
[422105222,1778577053000,-300.0,0.00037236,2]
[422105224,1778577053000,-451.72868137,0.00037236,2]
[422105229,1778577053000,-309.70196001,0.00037236,2]
[422105228,1778577053000,-483.88780455,0.00037236,2]
[422105231,1778577053000,-1094.29459015,0.00037236,2]
[422105220,1778577053000,-310.77293504,0.00037236,2]
[422105256,1778577053000,-300.0,0.00037236,2]
[422105210,1778577053000,-300.0,0.00037236,2]
[422105264,1778577053000,-300.0,0.00037236,2]
[422105295,1778577053000,-483.88780455,0.00037236,2]
[422105292,1778577053000,-300.0,0.00037236,2]
[422105299,1778577053000,-300.0,0.00037236,2]
[422105296,1778577053000,-309.70196001,0.00037236,2]
[422105300,1778577053000,-300.00000198,0.00037236,2]
[422105311,1778577053000,-300.45062341,0.00037236,2]
[422105312,1778577053000,-300.0,0.00037236,2]
[422105310,1778577053000,-300.0,0.00037236,2]
[422105302,1778577053000,-412.4401018,0.00037236,2]
[422105301,1778577053000,-492.49408754,0.00037236,2]
[422105307,1778577053000,-893.04482543,0.00037236,2]
[422105304,1778577053000,-300.0,0.00037236,2]
[422105289,1778577053000,-300.0,0.00037236,2]
[422105309,1778577053000,-301.67321972,0.00037236,2]
[422105303,1778577053000,-604.21547136,0.00037236,2]
[422105308,1778577053000,-725.78568352,0.00037236,2]
[422105306,1778577053000,-1066.50381929,0.00037236,2]
[422105313,1778577053000,-300.0,0.00037236,2]
[422105321,1778577053000,-310.77293504,0.00037236,2]
[422105315,1778577053000,-1911.66155628,0.00037236,2]
[422105317,1778577053000,-526.68525168,0.00037236,2]
[422105318,1778577053000,-1146.71946024,0.00037236,2]
[422105319,1778577053000,-309.46605895,0.00037236,2]
[422105314,1778577053000,-853.86030012,0.00037236,2]
[422105320,1778577053000,-864.10865205,0.00037236,2]
[422105263,1778577053000,-309.70196001,0.00037236,2]
[422105305,1778577053000,-527.54022817,0.00037236,2]
[422105288,1778577053000,-463.6616139,0.00037236,2]
[422105316,1778577053000,-343.84381003,0.00037236,2]
[422105298,1778577053000,-1094.29459015,0.00037236,2]
[422105265,1778577053000,-1094.29459015,0.00037236,2]
[422105267,1778577053000,-492.49408754,0.00037236,2]
[422105274,1778577053000,-725.78568352,0.00037236,2]
[422105266,1778577053000,-300.0,0.00037236,2]
[422105271,1778577053000,-527.54022817,0.00037236,2]
[422105272,1778577053000,-1066.50381929,0.00037236,2]
[422105268,1778577053000,-300.0,0.00037236,2]
[422105290,1778577053000,-576.93890108,0.00037236,2]